fUSD/lending_fUSD_20240825
["ID","MTS","AMOUNT","RATE_DAILY","PERIOD"]
[335865302,1724550640068,-292.16,0.00010991,2]
[335865335,1724550642856,-271.72929664,0.00010991,2]
[335865336,1724550643271,-10526.10059806,0.00010991,2]
[335865337,1724550643281,-155.08773013,0.00010993,2]
[335865338,1724550643290,-2000.0,0.00010998,2]
[335865340,1724550643299,-200.0,0.00010998,2]
[335865342,1724550643309,-2000.0,0.00010998,2]
[335865344,1724550643319,-200.0,0.00010998,2]
[335865346,1724550643329,-246.9965656,0.00010998,2]
[335865348,1724550643338,-500.0,0.00010998,2]
[335865350,1724550643347,-500.0,0.00010998,2]
[335865351,1724550643356,-500.0,0.00010998,2]
[335865352,1724550643365,-634.70227991,0.00010998,2]
[335865353,1724550643375,-500.0,0.00010998,2]
[335865354,1724550643384,-500.0,0.00010998,2]
[335865355,1724550643393,-500.0,0.00010998,2]
[335865356,1724550643402,-500.0,0.00010998,2]
[335865357,1724550643411,-500.0,0.00010998,2]
[335865358,1724550643420,-500.0,0.00010998,2]
[335865359,1724550643430,-500.0,0.00010998,2]
[335865360,1724550643441,-500.0,0.00010998,2]
[335865361,1724550643452,-424.76348224,0.00010998,2]
[335865362,1724550643462,-500.0,0.00010998,2]
[335865363,1724550643471,-2000.0,0.00010998,2]
[335865364,1724550643483,-200.0,0.00010998,2]
[335865365,1724550643492,-297.40555444,0.00010998,2]
[335865366,1724550643503,-500.0,0.00010998,2]
[335865367,1724550643512,-500.0,0.00010998,2]
[335865368,1724550643522,-500.0,0.00010998,2]
[335865369,1724550643531,-500.0,0.00010998,2]
[335865370,1724550643540,-500.0,0.00010998,2]
[335865371,1724550643549,-205.73890921,0.00010998,2]
[335865372,1724550643558,-500.0,0.00010998,2]
[335865373,1724550643567,-230.07209024,0.00010998,2]
[335865374,1724550643576,-500.0,0.00010998,2]
[335865375,1724550643586,-500.0,0.00010998,2]
[335865376,1724550643594,-500.0,0.00010998,2]
[335865377,1724550643603,-500.0,0.00010998,2]
[335865378,1724550643614,-500.0,0.00010998,2]
[335865379,1724550643623,-500.0,0.00010998,2]
[335865380,1724550643633,-500.0,0.00010998,2]
[335865381,1724550643642,-500.0,0.00010998,2]
[335865382,1724550643651,-160.63925699,0.00010998,2]
[335865383,1724550643661,-500.0,0.00010998,2]
[335865384,1724550643670,-163.81682662,0.00010998,2]
[335865385,1724550643680,-500.0,0.00010998,2]
[335865386,1724550643690,-500.0,0.00010998,2]
[335865387,1724550643700,-324.58166159,0.00010998,2]
[335865388,1724550643710,-500.0,0.00010998,2]
[335865389,1724550643719,-500.0,0.00010998,2]
[335865390,1724550643728,-500.0,0.00010998,2]
[335865391,1724550643738,-500.0,0.00010998,2]
[335865392,1724550643748,-500.0,0.00010998,2]
[335865393,1724550643763,-556.87792987,0.00010998,2]
[335865394,1724550643781,-500.0,0.00010998,2]
[335865395,1724550643791,-500.0,0.00010998,2]
[335865396,1724550643801,-363.43498408,0.00010998,2]
[335865397,1724550643811,-500.0,0.00010998,2]
[335865398,1724550643821,-297.72508291,0.00010998,2]
[335865399,1724550643831,-500.0,0.00010998,2]
[335865400,1724550643841,-500.0,0.00010998,2]
[335865401,1724550643851,-518.66,0.00010998,2]
[335865402,1724550643861,-500.0,0.00010998,2]
[335865403,1724550643871,-500.0,0.00010998,2]
[335865404,1724550643881,-500.0,0.00010998,2]
[335865405,1724550643891,-500.0,0.00010998,2]
[335865406,1724550643900,-500.0,0.00010998,2]
[335865407,1724550643910,-500.0,0.00010998,2]
[335865408,1724550643920,-500.0,0.00010998,2]
[335865409,1724550643930,-158.21400764,0.00010998,2]
[335865410,1724550643940,-500.0,0.00010998,2]
[335865411,1724550643950,-500.0,0.00010998,2]
[335865412,1724550643960,-500.0,0.00010998,2]
[335865413,1724550643970,-153.68953606,0.00010998,2]
[335865414,1724550643980,-500.0,0.00010998,2]
[335865415,1724550643989,-500.0,0.00010998,2]
[335865416,1724550643999,-500.0,0.00010998,2]
[335865417,1724550644011,-500.0,0.00010998,2]
[335865418,1724550644020,-500.0,0.00010998,2]
[335865419,1724550644030,-500.0,0.00010998,2]
[335865420,1724550644039,-353.94878811,0.00010998,2]
[335865421,1724550644049,-436.05233865,0.00010998,2]
[335865422,1724550644058,-500.0,0.00010998,2]
[335865423,1724550644068,-151.0,0.00010999,2]
[335865424,1724550644078,-1332.12071779,0.00010999,3]
[335865425,1724550644087,-1332.12071778,0.00010999,3]
[335865426,1724550644096,-151.0,0.00010999,2]
[335865427,1724550644106,-151.0,0.00010999,2]
[335865428,1724550644115,-151.0,0.00010999,2]
[335865429,1724550644125,-244.87248,0.00010999,2]
[335865430,1724550644134,-151.0,0.00010999,2]
[335865431,1724550644144,-151.0,0.00010999,2]
[335865432,1724550644154,-151.0,0.00010999,2]
[335865433,1724550644163,-151.0,0.00010999,2]
[335865434,1724550644173,-151.0,0.00010999,2]
[335865435,1724550644182,-151.0,0.00010999,2]
[335865436,1724550644192,-151.0,0.00010999,2]
[335865437,1724550644203,-151.0,0.00010999,2]
[335865438,1724550644213,-276.792646,0.00010999,2]
[335865439,1724550644223,-151.0,0.00010999,2]
[335865440,1724550644235,-151.0,0.00010999,2]
[335865441,1724550644245,-151.0,0.00010999,2]
[335865442,1724550644258,-151.0,0.00010999,2]
[335865443,1724550644267,-151.0,0.00010999,2]
[335865444,1724550644276,-151.0,0.00010999,2]
[335865445,1724550644288,-151.0,0.00010999,2]
[335865446,1724550644297,-270.517194,0.00010999,2]
[335865447,1724550644308,-1175.150613,0.00010999,2]
[335865448,1724550644318,-1175.150613,0.00010999,2]
[335865449,1724550644328,-1175.150613,0.00010999,2]
[335865450,1724550644338,-1175.150613,0.00010999,2]
[335865451,1724550644347,-1175.150613,0.00010999,2]
[335865452,1724550644357,-1175.150613,0.00010999,2]
[335865453,1724550644366,-1175.150613,0.00010999,2]
[335865454,1724550644376,-548.83398109,0.00010999,2]
[335865456,1724550645695,-546.38214455,0.00010999,2]
[335865457,1724550645856,-79.93448736,0.00010999,2]
[335865458,1724550645866,-364.30401336,0.00010999,2]
[335865459,1724550645878,-810.84659964,0.00010999,2]
[335865460,1724550645887,-1108.73045955,0.00010999,2]
[335865461,1724550645899,-66.42015345,0.00010999,2]
[335865462,1724550645908,-673.98018243,0.00010999,2]
[335865463,1724550645920,-501.17043057,0.00010999,2]
[335865464,1724550645930,-1175.150613,0.00010999,2]
[335865465,1724550645940,-1175.150613,0.00010999,2]
[335865466,1724550645949,-1175.150613,0.00010999,2]
[335865467,1724550645959,-1175.150613,0.00010999,2]
[335865468,1724550645969,-1175.150613,0.00010999,2]
[335865469,1724550645977,-1175.150613,0.00010999,2]
[335865470,1724550645987,-1175.150613,0.00010999,2]
[335865471,1724550645996,-1175.150613,0.00010999,2]
[335865472,1724550646008,-1175.150609,0.00010999,2]
[335865473,1724550646017,-151.0,0.00010999,2]
[335865474,1724550646026,-151.602528,0.00010999,2]
[335865475,1724550646035,-151.0,0.00010999,2]
[335865476,1724550646044,-151.0,0.00010999,2]
[335865477,1724550646053,-151.742169,0.00010999,2]
[335865478,1724550646062,-151.0,0.00010999,2]
[335865479,1724550646072,-151.0,0.00010999,2]
[335865480,1724550646082,-151.0,0.00010999,2]
[335865481,1724550646091,-151.538579,0.00010999,2]
[335865482,1724550646100,-151.0,0.00010999,2]
[335865483,1724550646110,-151.0,0.00010999,2]
[335865484,1724550646119,-151.0,0.00010999,2]
[335865485,1724550646128,-248.202432,0.00010999,2]
[335865486,1724550646138,-213.424907,0.00010999,2]
[335865487,1724550646149,-213.424907,0.00010999,2]
[335865488,1724550646159,-213.424907,0.00010999,2]
[335865489,1724550646168,-213.424907,0.00010999,2]
[335865490,1724550646177,-213.424907,0.00010999,2]
[335865491,1724550646187,-213.424907,0.00010999,2]
[335865492,1724550646196,-213.424907,0.00010999,2]
[335865493,1724550646207,-213.424907,0.00010999,2]
[335865494,1724550646217,-213.424907,0.00010999,2]
[335865495,1724550646226,-213.424907,0.00010999,2]
[335865496,1724550646235,-213.424907,0.00010999,2]
[335865497,1724550646244,-213.424907,0.00010999,2]
[335865498,1724550646255,-213.424907,0.00010999,2]
[335865499,1724550646264,-213.424907,0.00010999,2]
[335865500,1724550646273,-213.424907,0.00010999,2]
[335865501,1724550646283,-213.424907,0.00010999,2]
[335865502,1724550646293,-213.424907,0.00010999,2]
[335865503,1724550646303,-213.424907,0.00010999,2]
[335865504,1724550646312,-213.424907,0.00010999,2]
[335865505,1724550646323,-213.424898,0.00010999,2]
[335865506,1724550646332,-151.0,0.00010999,2]
[335865507,1724550646341,-151.0,0.00010999,2]
[335865508,1724550646350,-151.0,0.00010999,2]
[335865509,1724550646359,-287.284268,0.00010999,2]
[335865510,1724550646369,-151.0,0.00010999,2]
[335865511,1724550646378,-151.0,0.00010999,2]
[335865512,1724550646387,-207.139763,0.00010999,2]
[335865513,1724550646397,-151.0,0.00010999,2]
[335865514,1724550646406,-151.0,0.00010999,2]
[335865515,1724550646415,-151.0,0.00010999,2]
[335865516,1724550646424,-151.0,0.00010999,2]
[335865517,1724550646434,-151.0,0.00010999,2]
[335865518,1724550646447,-151.0,0.00010999,2]
[335865519,1724550646459,-151.0,0.00010999,2]
[335865520,1724550646470,-151.0,0.00010999,2]
[335865521,1724550646479,-151.0,0.00010999,2]
[335865522,1724550646490,-151.0,0.00010999,2]
[335865523,1724550646499,-296.65624967,0.00010999,2]
[335865524,1724550646510,-151.0,0.00010999,2]
[335865525,1724550646522,-151.0,0.00010999,2]
[335865526,1724550646531,-151.0,0.00010999,2]
[335865527,1724550646539,-151.0,0.00010999,2]
[335865528,1724550646549,-151.0,0.00010999,2]
[335865529,1724550646558,-151.0,0.00010999,2]
[335865530,1724550646567,-151.0,0.00010999,2]
[335865531,1724550646576,-151.0,0.00010999,2]
[335865532,1724550646585,-151.0,0.00010999,2]
[335865533,1724550646594,-151.0,0.00010999,2]
[335865534,1724550646603,-151.0,0.00010999,2]
[335865535,1724550646612,-151.0,0.00010999,2]
[335865536,1724550646621,-151.0,0.00010999,2]
[335865537,1724550646630,-270.504488,0.00010999,2]
[335865538,1724550646639,-162.77994,0.00010999,2]
[335865539,1724550646648,-162.77994,0.00010999,2]
[335865540,1724550646658,-162.77994,0.00010999,2]
[335865541,1724550646667,-162.77994,0.00010999,2]
[335865542,1724550646676,-162.77994,0.00010999,2]
[335865543,1724550646685,-162.77994,0.00010999,2]
[335865544,1724550646695,-162.77994,0.00010999,2]
[335865545,1724550646705,-162.77994,0.00010999,2]
[335865546,1724550646714,-162.77994,0.00010999,2]
[335865547,1724550646723,-162.77994,0.00010999,2]
[335865548,1724550646732,-162.77994,0.00010999,2]
[335865549,1724550646742,-162.77994,0.00010999,2]
[335865550,1724550646751,-162.77994,0.00010999,2]
[335865551,1724550646768,-162.77994,0.00010999,2]
[335865552,1724550646778,-162.77994,0.00010999,2]
[335865553,1724550646787,-162.77994,0.00010999,2]
[335865554,1724550646795,-162.77994,0.00010999,2]
[335865555,1724550646805,-162.77994,0.00010999,2]
[335865556,1724550646814,-162.77994,0.00010999,2]
[335865557,1724550646823,-162.779943,0.00010999,2]
[335865558,1724550646832,-151.0,0.00010999,2]
[335865559,1724550646842,-151.0,0.00010999,2]
[335865560,1724550646851,-151.0,0.00010999,2]
[335865561,1724550646861,-151.0,0.00010999,2]
[335865562,1724550646870,-151.0,0.00010999,2]
[335865563,1724550646879,-151.704365,0.00010999,2]
[335865564,1724550646889,-500.0,0.00010999,2]
[335865565,1724550646900,-500.0,0.00010999,2]
[335865566,1724550646909,-500.0,0.00010999,2]
[335865567,1724550646918,-500.0,0.00010999,2]
[335865568,1724550646927,-500.0,0.00010999,2]
[335865569,1724550646937,-500.0,0.00010999,2]
[335865570,1724550646946,-500.0,0.00010999,2]
[335865571,1724550646955,-583.65259899,0.00010999,2]
[335865572,1724550646965,-151.0,0.00010999,2]
[335865573,1724550646974,-151.0,0.00010999,2]
[335865574,1724550646983,-151.0,0.00010999,2]
[335865575,1724550646992,-151.0,0.00010999,2]
[335865576,1724550647001,-151.0,0.00010999,2]
[335865577,1724550647013,-151.0,0.00010999,2]
[335865578,1724550647023,-170.414654,0.00010999,2]
[335865579,1724550647032,-500.0,0.00010999,2]
[335865580,1724550647042,-500.0,0.00010999,2]
[335865581,1724550647052,-500.0,0.00010999,2]
[335865582,1724550647062,-425.9878006,0.00010999,2]
[335865583,1724550647081,-74.0121994,0.00010999,2]
[335865584,1724550647090,-500.0,0.00010999,2]
[335865585,1724550647099,-500.0,0.00010999,2]
[335865586,1724550647109,-500.0,0.00010999,2]
[335865587,1724550647118,-500.0,0.00010999,2]
[335865588,1724550647127,-433.45152241,0.00010999,2]
[335865589,1724550647136,-151.0,0.00010999,2]
[335865590,1724550647146,-151.532688,0.00010999,2]
[335865591,1724550647155,-151.0,0.00010999,2]
[335865592,1724550647165,-151.0,0.00010999,2]
[335865593,1724550647175,-151.0,0.00010999,2]
[335865594,1724550647184,-220.066584,0.00010999,2]
[335865595,1724550647194,-456.69963619,0.00010999,2]
[335865596,1724550647203,-398.95076414,0.00010999,2]
[335865597,1724550647212,-186.208914,0.00010999,2]
[335865598,1724550647222,-186.208914,0.00010999,2]
[335865599,1724550647230,-186.208914,0.00010999,2]
[335865600,1724550647240,-186.208914,0.00010999,2]
[335865601,1724550647249,-186.208914,0.00010999,2]
[335865602,1724550647262,-186.208914,0.00010999,2]
[335865603,1724550647271,-186.208914,0.00010999,2]
[335865604,1724550647280,-186.208914,0.00010999,2]
[335865605,1724550647289,-186.208914,0.00010999,2]
[335865606,1724550647299,-186.208914,0.00010999,2]
[335865607,1724550647309,-186.208914,0.00010999,2]
[335865608,1724550647319,-186.208914,0.00010999,2]
[335865609,1724550647328,-186.208914,0.00010999,2]
[335865610,1724550647337,-186.208914,0.00010999,2]
[335865611,1724550647347,-186.208914,0.00010999,2]
[335865612,1724550647357,-186.208914,0.00010999,2]
[335865613,1724550647366,-186.208914,0.00010999,2]
[335865614,1724550647376,-186.208914,0.00010999,2]
[335865615,1724550647385,-186.208914,0.00010999,2]
[335865616,1724550647394,-186.208912,0.00010999,2]
[335865617,1724550647404,-151.0,0.00010999,2]
[335865618,1724550647414,-151.0,0.00010999,2]
[335865619,1724550647423,-151.0,0.00010999,2]
[335865620,1724550647433,-282.645622,0.00010999,2]
[335865621,1724550647445,-500.0,0.00010999,2]
[335865622,1724550647455,-500.0,0.00010999,2]
[335865623,1724550647465,-500.0,0.00010999,2]
[335865624,1724550647475,-500.0,0.00010999,2]
[335865625,1724550647485,-241.66040378,0.00010999,2]
[335865626,1724550647495,-151.0,0.00010999,2]
[335865627,1724550647505,-151.0,0.00010999,2]
[335865628,1724550647516,-151.0,0.00010999,2]
[335865629,1724550647525,-195.897556,0.00010999,2]
[335865630,1724550647534,-677.893113,0.00010999,2]
[335865631,1724550647544,-677.893113,0.00010999,2]
[335865632,1724550647553,-500.0,0.00010999,2]
[335865633,1724550647563,-500.0,0.00010999,2]
[335865634,1724550647572,-677.893113,0.00010999,2]
[335865635,1724550647582,-500.0,0.00010999,2]
[335865636,1724550647592,-500.0,0.00010999,2]
[335865637,1724550647602,-677.893113,0.00010999,2]
[335865638,1724550647611,-500.0,0.00010999,2]
[335865639,1724550647620,-500.0,0.00010999,2]
[335865640,1724550647629,-500.0,0.00010999,2]
[335865641,1724550647639,-677.893113,0.00010999,2]
[335865642,1724550647648,-500.0,0.00010999,2]
[335865643,1724550647658,-500.0,0.00010999,2]
[335865644,1724550647667,-500.0,0.00010999,2]
[335865645,1724550647677,-389.45449738,0.00010999,2]
[335865646,1724550647816,-531.64507743,0.00010999,2]
[335865647,1724550647836,-146.24803557,0.00010999,2]
[335865648,1724550647846,-307.21414664,0.00010999,2]
[335865651,1724550905405,291.01,8.219e-05,2]
[335865652,1724550936510,184.21,9.979e-05,2]
[335865653,1724551058239,4286.66,9.979e-05,2]
[335865654,1724551059583,230.53,9.979e-05,2]
[335865655,1724551206212,354.47,9.956e-05,2]
[335865656,1724551316142,1000.0,9.923e-05,2]
[335865657,1724551317635,23900.0,9.923e-05,2]
[335865660,1724551360068,450.0,0.00027,120]
[335865661,1724551360440,242.99,9.934e-05,2]
[335865662,1724551443992,326.89,9.912e-05,2]
[335865663,1724551495531,293.79,8.219e-05,2]
[335865664,1724551581793,155.0,9.962e-05,2]
[335865666,1724551595113,3947.78534371,9.962e-05,2]
[335865667,1724551607271,529.51821242,9.962e-05,2]
[335865668,1724551610874,2218.37046469,9.962e-05,2]
[335865669,1724551619794,246.7206524,9.962e-05,2]
[335865670,1724551642469,250.0,9.902e-05,2]
[335865671,1724551740076,724.02453146,0.00010009,2]
[335865683,1724551831843,-155.52843343,0.00010097,2]
[335865684,1724551831853,-155.0,0.00010097,2]
[335865685,1724551831866,-293.79,0.00010471,2]
[335865686,1724551831877,-221.22406468,0.00010471,2]
[335865687,1724551831891,-378.10131042,0.00010471,2]
[335865688,1724551831903,-421.56205639,0.00010505,2]
[335865689,1724551831915,-300.0,0.00010565,2]
[335865690,1724551831925,-300.0,0.00010565,2]
[335865691,1724551831937,-150.0,0.0001074,2]
[335865692,1724551831947,-150.0,0.00010757,2]
[335865693,1724551831959,-150.0,0.00010758,2]
[335865694,1724551831970,-150.0,0.00010768,2]
[335865695,1724551831980,-150.0,0.00010791,2]
[335865696,1724551831990,-150.0,0.00010796,2]
[335865697,1724551832000,-155.26492638,0.00010799,2]
[335865698,1724551832014,-864.852643,0.000108,2]
[335865699,1724551832025,-421.55,0.000108,2]
[335865700,1724551832035,-421.01,0.000108,2]
[335865701,1724551832046,-150.0,0.00010805,2]
[335865702,1724551832056,-150.0,0.0001082,2]
[335865703,1724551832066,-150.0,0.00010834,2]
[335865704,1724551832077,-165.30742633,0.00010843,2]
[335865705,1724551832087,-155.16990829,0.00010852,2]
[335865706,1724551832097,-272.50643643,0.00010852,2]
[335865707,1724551832107,-632.34756528,0.00010852,2]
[335865708,1724551832117,-155.11700865,0.00010852,2]
[335865709,1724551832128,-150.0,0.00010867,2]
[335865710,1724551832138,-920.15561,0.0001089,2]
[335865711,1724551832149,-1160.602,0.00010893,2]
[335865712,1724551832159,-747.63734162,0.00010893,2]
[335865713,1724551832173,-19.36265838,0.00010893,2]
[335865714,1724551832183,-459.44429198,0.00010899,2]
[335865715,1724551832196,-391.75150802,0.00010899,2]
[335865716,1724551832207,-163.9203,0.00010899,2]
[335865717,1724551832218,-179.67614889,0.00010899,2]
[335865718,1724551832229,-150.0,0.00010908,2]
[335865719,1724551832239,-155.29029521,0.00010949,2]
[335865720,1724551832249,-15.05855821,0.00010959,2]
[335865721,1724551832269,-179.17144179,0.00010959,2]
[335865722,1724551832279,-157.07,0.00010959,2]
[335865723,1724551832289,-250.0,0.00010959,2]
[335865724,1724551832300,-32.90850394,0.00010973,2]
[335865725,1724551832311,-170.07023853,0.00010973,2]
[335865726,1724551832321,-1679.669966,0.00010992,2]
[335865727,1724551832331,-2609.21664445,0.00010992,2]
[335865728,1724551832342,-4664.66731735,0.00010992,2]
[335865729,1724551832352,-781.6577168,0.00010992,2]
[335865730,1724551832361,-624.334,0.00010998,2]
[335865731,1724551832370,-1931.83,0.00010998,2]
[335865732,1724551832601,-1547.312,0.00010998,2]
[335865733,1724551832613,-1260.697,0.00010998,2]
[335865734,1724551832623,-511.82135846,0.00010998,2]
[335865735,1724551832633,-500.0,0.00010998,2]
[335865736,1724551832642,-500.0,0.00010998,2]
[335865737,1724551832652,-500.0,0.00010998,2]
[335865738,1724551832661,-500.0,0.00010998,2]
[335865739,1724551832671,-500.0,0.00010998,2]
[335865740,1724551832680,-500.0,0.00010998,2]
[335865741,1724551832690,-500.0,0.00010998,2]
[335865742,1724551832700,-500.0,0.00010998,2]
[335865743,1724551832709,-500.0,0.00010998,2]
[335865744,1724551832718,-289.27030975,0.00010998,2]
[335865745,1724551832734,-210.72969025,0.00010998,2]
[335865746,1724551832743,-500.0,0.00010998,2]
[335865747,1724551832752,-500.0,0.00010998,2]
[335865748,1724551832763,-500.0,0.00010998,2]
[335865749,1724551832773,-500.0,0.00010998,2]
[335865750,1724551832782,-337.61108583,0.00010998,2]
[335865751,1724551832792,-500.0,0.00010998,2]
[335865752,1724551832802,-348.5559153,0.00010998,2]
[335865753,1724551832810,-293.24760752,0.00010998,2]
[335865754,1724551832820,-392.82464375,0.00010998,2]
[335865755,1724551832835,-107.17535625,0.00010998,2]
[335865756,1724551832844,-152.84348474,0.00010998,2]
[335865757,1724551832856,-347.15651526,0.00010998,2]
[335865758,1724551832865,-369.0322314,0.00010998,2]
[335865759,1724551832892,-155.13122057,0.00010097,2]
[335865760,1724551832903,-130.9677686,0.00010998,2]
[335865761,1724551832912,-59.705043,0.00010998,2]
[335865762,1724551837888,-15546.41760153,0.00010949,2]
[335865763,1724551837898,-159.38,0.00010959,2]
[335865764,1724551837908,-440.294957,0.00010998,2]
[335865765,1724551837917,-500.0,0.00010998,2]
[335865766,1724551837927,-524.7,0.00010998,2]
[335865767,1724551837936,-500.0,0.00010998,2]
[335865768,1724551837945,-500.0,0.00010998,2]
[335865769,1724551837954,-500.0,0.00010998,2]
[335865770,1724551837964,-500.0,0.00010998,2]
[335865771,1724551837973,-510.44145602,0.00010998,2]
[335865772,1724551837982,-178.12876748,0.00010998,2]
[335865773,1724551837991,-472.63619236,0.00010998,2]
[335865774,1724551838001,-344.30948906,0.00010998,2]
[335865775,1724551838011,-500.0,0.00010998,2]
[335865776,1724551838022,-500.0,0.00010998,2]
[335865777,1724551838031,-500.0,0.00010998,2]
[335865778,1724551838041,-202.99609002,0.00010998,2]
[335865779,1724551838051,-500.0,0.00010998,2]
[335865780,1724551838060,-12304.36625611,0.00010998,2]
[335865781,1724551838070,-500.0,0.00010998,2]
[335865782,1724551838080,-500.0,0.00010998,2]
[335865783,1724551838089,-500.0,0.00010998,2]
[335865784,1724551838099,-500.0,0.00010998,2]
[335865785,1724551838109,-617.10763935,0.00010998,2]
[335865786,1724551838119,-500.0,0.00010998,2]
[335865787,1724551838130,-500.0,0.00010998,2]
[335865788,1724551838139,-500.0,0.00010998,2]
[335865789,1724551838149,-7418.8901437,0.00010998,2]
[335865790,1724551838159,-500.0,0.00010998,2]
[335865791,1724551838169,-156.34610307,0.00010998,2]
[335865792,1724551838178,-224.47357936,0.00010998,2]
[335865793,1724551838188,-500.0,0.00010998,2]
[335865794,1724551838199,-500.0,0.00010998,2]
[335865795,1724551838208,-500.0,0.00010998,2]
[335865796,1724551838217,-151.0,0.00010999,2]
[335865797,1724551838227,-151.0,0.00010999,2]
[335865798,1724551838236,-151.0,0.00010999,2]
[335865799,1724551838246,-151.0,0.00010999,2]
[335865800,1724551838255,-162.242048,0.00010999,2]
[335865801,1724551838275,-200.0,0.00010999,2]
[335865802,1724551838284,-151.0,0.00010999,2]
[335865804,1724551838293,-151.215502,0.00010999,2]
[335865806,1724551838303,-153.092089,0.00010999,2]
[335865807,1724551838312,-151.0,0.00010999,2]
[335865808,1724551838321,-151.0,0.00010999,2]
[335865809,1724551838330,-151.0,0.00010999,2]
[335865810,1724551838339,-151.0,0.00010999,2]
[335865811,1724551838348,-151.0,0.00010999,2]
[335865812,1724551838357,-151.0,0.00010999,2]
[335865813,1724551838366,-151.0,0.00010999,2]
[335865814,1724551838375,-151.0,0.00010999,2]
[335865815,1724551838385,-151.0,0.00010999,2]
[335865816,1724551838394,-151.0,0.00010999,2]
[335865817,1724551838403,-151.0,0.00010999,2]
[335865818,1724551838412,-151.0,0.00010999,2]
[335865819,1724551838421,-151.0,0.00010999,2]
[335865821,1724551838431,-158.942893,0.00010999,2]
[335865823,1724551838440,-151.0,0.00010999,2]
[335865825,1724551838450,-151.0,0.00010999,2]
[335865827,1724551838459,-151.0,0.00010999,2]
[335865829,1724551838468,-151.0,0.00010999,2]
[335865831,1724551838477,-151.0,0.00010999,2]
[335865833,1724551838486,-151.0,0.00010999,2]
[335865835,1724551838495,-151.0,0.00010999,2]
[335865837,1724551838505,-151.0,0.00010999,2]
[335865839,1724551838518,-2000.0,0.00010999,2]
[335865841,1724551838527,-200.0,0.00010999,2]
[335865843,1724551838536,-154.899462,0.00010999,2]
[335865845,1724551838545,-154.899462,0.00010999,2]
[335865847,1724551838555,-154.899462,0.00010999,2]
[335865849,1724551838564,-154.899462,0.00010999,2]
[335865851,1724551838574,-154.899462,0.00010999,2]
[335865853,1724551838584,-154.899462,0.00010999,2]
[335865855,1724551838593,-154.899462,0.00010999,2]
[335865857,1724551838602,-154.899462,0.00010999,2]
[335865859,1724551838612,-154.899462,0.00010999,2]
[335865861,1724551838622,-154.899462,0.00010999,2]
[335865863,1724551838631,-154.899462,0.00010999,2]
[335865865,1724551838640,-154.899462,0.00010999,2]
[335865867,1724551838649,-154.899462,0.00010999,2]
[335865869,1724551838659,-154.899462,0.00010999,2]
[335865871,1724551838668,-154.899462,0.00010999,2]
[335865873,1724551838677,-154.899462,0.00010999,2]
[335865874,1724551838686,-151.0,0.00010999,2]
[335865876,1724551838695,-151.0,0.00010999,2]
[335865878,1724551838704,-244.240964,0.00010999,2]
[335865880,1724551838714,-152.12794,0.00010999,2]
[335865883,1724551838724,-152.12794,0.00010999,2]
[335865884,1724551838733,-152.12794,0.00010999,2]
[335865886,1724551838742,-152.12794,0.00010999,2]
[335865888,1724551838751,-152.12794,0.00010999,2]
[335865890,1724551838761,-152.12794,0.00010999,2]
[335865892,1724551838770,-152.12794,0.00010999,2]
[335865893,1724551838779,-152.12794,0.00010999,2]
[335865894,1724551838789,-152.12794,0.00010999,2]